Departmental Area,Entity,Payment Date,Expense type,Expense Area,Supplier Name,Payment Reference,      Invoice Distribution Amount      ,Description,Supplier Type,Expenditure Type
UK Statistics Family,Office for National Statistics,01/03/2023,Exp - Purchase Of Goods/Services - IT Contractual Services,PARTNERSHIP DEVELOPMENT,Sas Software Ltd,258457," 26,244.00 ",Information Management Services,Large,Programme Expenditure
UK Statistics Family,Office for National Statistics,01/03/2023,Exp - Purchase Of Goods/Services - IT Contractual Services,Digital Publishing,TPXimpact Scotland Limited,258458," 71,026.20 ",Information Management Services,SME,Programme Expenditure
UK Statistics Family,Office for National Statistics,01/03/2023,Exp - Purchase Of Goods/Services - Incentive Payments,Social Surveys Division,Natcen Social Research,258459," 30,294.60 ",Statistical Services,Large,Programme Expenditure
UK Statistics Family,Office for National Statistics,01/03/2023,Exp - Short-Term Contract & Agency Staff - Full Cost,Business Change Support,Concept Information Technology Ltd T/A Concept Resourcing,258461," 2,109.00 ",Information Management Services,Large,Programme Expenditure
UK Statistics Family,Office for National Statistics,01/03/2023,Exp - Short-Term Contract & Agency Staff - Full Cost,Business Change Support,Concept Information Technology Ltd T/A Concept Resourcing,258461," 4,007.10 ",Information Management Services,Large,Programme Expenditure
UK Statistics Family,Office for National Statistics,01/03/2023,Exp - Short-Term Contract & Agency Staff - Full Cost,Business Architecture Transformation And Statistical Strategy,Concept Information Technology Ltd T/A Concept Resourcing,258461," 4,007.10 ",Information Management Services,Large,Programme Expenditure
UK Statistics Family,Office for National Statistics,01/03/2023,Exp - Short-Term Contract & Agency Staff - Full Cost,ECONOMICS STATISTICS CHANGE CENTRAL,Concept Information Technology Ltd T/A Concept Resourcing,258461," 2,947.07 ",Information Management Services,Large,Programme Expenditure
UK Statistics Family,Office for National Statistics,01/03/2023,Exp - Short-Term Contract & Agency Staff - Full Cost,"SUB-NATIONAL STATISTICS AND ANALYSIS
",Concept Information Technology Ltd T/A Concept Resourcing,258461," 8,973.36 ",Information Management Services,Large,Programme Expenditure
UK Statistics Family,Office for National Statistics,01/03/2023,Exp - Short-Term Contract & Agency Staff - Full Cost,Public Sector And Households,Concept Information Technology Ltd T/A Concept Resourcing,258461," 7,828.74 ",Information Management Services,Large,Programme Expenditure
UK Statistics Family,Office for National Statistics,01/03/2023,Exp - Short-Term Contract & Agency Staff - Full Cost,Public Sector And Households,Concept Information Technology Ltd T/A Concept Resourcing,258461," 6,956.86 ",Information Management Services,Large,Programme Expenditure
UK Statistics Family,Office for National Statistics,01/03/2023,Exp - Short-Term Contract & Agency Staff - Full Cost,Public Sector And Households,Concept Information Technology Ltd T/A Concept Resourcing,258461," 4,914.70 ",Information Management Services,Large,Programme Expenditure
UK Statistics Family,Office for National Statistics,01/03/2023,Exp - Short-Term Contract & Agency Staff - Full Cost,Prices Division,Concept Information Technology Ltd T/A Concept Resourcing,258461, 963.48 ,Information Management Services,Large,Programme Expenditure
UK Statistics Family,Office for National Statistics,01/03/2023,Exp - Purchase Of Goods/Services - Training & Development - Seminar & Conference Fees,Policy Secretariat,Rss Conference,258470," 26,786.50 ",Corporate Membership Fees,Large,Programme Expenditure
UK Statistics Family,Office for National Statistics,01/03/2023,Exp - Purchase Of Goods/Services - Contractors,Testing,La International,258472," 9,552.64 ",Information Management Services,SME,Programme Expenditure
UK Statistics Family,Office for National Statistics,01/03/2023,Exp - Purchase Of Goods/Services - Contractors,Testing,La International,258472," 3,317.65 ",Information Management Services,SME,Programme Expenditure
UK Statistics Family,Office for National Statistics,01/03/2023,Exp - Purchase Of Goods/Services - Contractors,Testing,La International,258472, 663.53 ,Information Management Services,SME,Programme Expenditure
UK Statistics Family,Office for National Statistics,01/03/2023,Exp - Purchase Of Goods/Services - Contractors,Data Architecture,La International,258472," 12,094.74 ",Information Management Services,SME,Programme Expenditure
UK Statistics Family,Office for National Statistics,01/03/2023,Exp - Purchase Of Goods/Services - Contractors,Data Architecture,La International,258472," 4,281.18 ",Information Management Services,SME,Programme Expenditure
UK Statistics Family,Office for National Statistics,01/03/2023,Exp - Purchase Of Goods/Services - Incentive Payments,Survey Management,Sodexo Motivation Solutions U.K. ltd,258491," 1,482.87 ",Survey Response Incentive Vouchers,Large,Programme Expenditure
UK Statistics Family,Office for National Statistics,01/03/2023,Exp - Purchase Of Goods/Services - Incentive Payments,Survey Management,Sodexo Motivation Solutions U.K. ltd,258491, 542.81 ,Survey Response Incentive Vouchers,Large,Programme Expenditure
UK Statistics Family,Office for National Statistics,01/03/2023,Exp - Purchase Of Goods/Services - Incentive Payments,Survey Management,Sodexo Motivation Solutions U.K. ltd,258491," 1,302.69 ",Survey Response Incentive Vouchers,Large,Programme Expenditure
UK Statistics Family,Office for National Statistics,01/03/2023,Exp - Purchase Of Goods/Services - Incentive Payments,Survey Management,Sodexo Motivation Solutions U.K. ltd,258491," 12,691.20 ",Survey Response Incentive Vouchers,Large,Programme Expenditure
UK Statistics Family,Office for National Statistics,01/03/2023,Exp - Purchase Of Goods/Services - Incentive Payments,Survey Management,Sodexo Motivation Solutions U.K. ltd,258491," 1,243.20 ",Survey Response Incentive Vouchers,Large,Programme Expenditure
UK Statistics Family,Office for National Statistics,01/03/2023,Exp - Purchase Of Goods/Services - Incentive Payments,Survey Management,Sodexo Motivation Solutions U.K. ltd,258491, 821.40 ,Survey Response Incentive Vouchers,Large,Programme Expenditure
UK Statistics Family,Office for National Statistics,01/03/2023,Exp - Purchase Of Goods/Services - Incentive Payments,Covid Infection Survey,Sodexo Motivation Solutions U.K. ltd,258491," 6,707.10 ",Survey Response Incentive Vouchers,Large,Programme Expenditure
UK Statistics Family,Office for National Statistics,01/03/2023,Exp - Purchase Of Goods/Services - Incentive Payments,Interviewer Support,Sodexo Motivation Solutions U.K. ltd,258491, 108.54 ,Survey Response Incentive Vouchers,Large,Programme Expenditure
UK Statistics Family,Office for National Statistics,01/03/2023,Exp - Purchase Of Goods/Services - Incentive Payments,Survey Management,Sodexo Motivation Solutions U.K. ltd,258491," 1,309.80 ",Survey Response Incentive Vouchers,Large,Programme Expenditure
UK Statistics Family,Office for National Statistics,01/03/2023,Exp - Purchase Of Goods/Services - Incentive Payments,Survey Management,Sodexo Motivation Solutions U.K. ltd,258491," 8,847.20 ",Survey Response Incentive Vouchers,Large,Programme Expenditure
UK Statistics Family,Office for National Statistics,01/03/2023,Exp - Purchase Of Goods/Services - Contractors,Programme Support,Parity Resources Limited,258497," 3,600.00 ",Information Management Services,Large,Programme Expenditure
UK Statistics Family,Office for National Statistics,01/03/2023,Exp - Purchase Of Goods And Services Consultants,Analysis Microdata And Engagement,Parity Resources Limited,258497," 4,631.52 ",Information Management Services,Large,Programme Expenditure
UK Statistics Family,Office for National Statistics,01/03/2023,Exp - Short-Term Contract & Agency Staff - Full Cost,Finance,Parity Resources Limited,258497, 754.80 ,Information Management Services,Large,Programme Expenditure
UK Statistics Family,Office for National Statistics,01/03/2023,Exp - Purchase Of Goods/Services - Contractors,Strategy And Architecture,Parity Resources Limited,258497," 4,210.50 ",Information Management Services,Large,Programme Expenditure
UK Statistics Family,Office for National Statistics,01/03/2023,Exp - Purchase Of Goods/Services - Contractors,Tech Delivery Next Gen IT And Infrastructure,Parity Resources Limited,258497," 7,578.90 ",Information Management Services,Large,Programme Expenditure
UK Statistics Family,Office for National Statistics,01/03/2023,Exp - Purchase Of Goods/Services - Contractors,IT Operations,Parity Resources Limited,258497," 7,390.50 ",Information Management Services,Large,Programme Expenditure
UK Statistics Family,Office for National Statistics,01/03/2023,Exp - Short-Term Contract & Agency Staff - Full Cost,Interviewer Management FiF,Parity Resources Limited,258497," 13,707.68 ",Information Management Services,Large,Programme Expenditure
UK Statistics Family,Office for National Statistics,01/03/2023,Exp - Purchase Of Goods/Services - Census Field Costs,Interviewer Management FiF,Parity Resources Limited,258497," 2,649.09 ",Information Management Services,Large,Programme Expenditure
UK Statistics Family,Office for National Statistics,01/03/2023,EXP - PURCHASE OF GOODS/SERVICES -  NON IT CONTRACTUAL PAYMENTS,UKSA,UKRI Economic & Social Research Council,258508," 25,870.00 ",Statistical Services,Large,Programme Expenditure
UK Statistics Family,Office for National Statistics,01/03/2023,Software Licences At Cost - Additions,IT Operations,Actian Europe Limited,258509," 1,800,000.00 ",Software Licenses,SME,Programme Expenditure
UK Statistics Family,Office for National Statistics,02/03/2023,Exp - Purchase Of Goods/Services - Other ICT Costs Software,Finance,Scc,258716," 154,286.88 ",Software Licenses,Large,Programme Expenditure
UK Statistics Family,Office for National Statistics,02/03/2023,IT (Owned) At Cost - Additions,IT Operations,Scc,258716," 70,201.24 ",Computers and Peripherals,Large,Programme Expenditure
UK Statistics Family,Office for National Statistics,02/03/2023,"ICT Outsourcing, Maintenance And Support",IT Operations,Scc,258716," 18,104.78 ",Computers and Peripherals,Large,Programme Expenditure
UK Statistics Family,Office for National Statistics,02/03/2023,"ICT Outsourcing, Maintenance And Support",IT Operations,Scc,258716," 32,633.86 ",Computers and Peripherals,Large,Programme Expenditure
UK Statistics Family,Office for National Statistics,02/03/2023,Telecoms,IT Operations,Bt Global Services,258717," 51,405.28 ",Telecommunications,Large,Programme Expenditure
UK Statistics Family,Office for National Statistics,02/03/2023,Exp - Purchase Of Goods/Services - IT Contractual Services,CDIO UNGP,CTS (Cloud Technology Solutions Ltd),258722," 98,775.00 ",Information Management Services,Large,Programme Expenditure
UK Statistics Family,Office for National Statistics,02/03/2023,Exp - Purchase Of Goods/Services - IT Contractual Services,PARTNERSHIP DEVELOPMENT,CGI IT UK Limited,258724," 299,353.06 ",Information Management Services,Large,Programme Expenditure
UK Statistics Family,Office for National Statistics,02/03/2023,Exp - Purchase Of Goods/Services - Contractors,Testing,LA FOSSE ASSOCIATES LIMITED,258727," 16,800.00 ",Information Management Services,Large,Programme Expenditure
UK Statistics Family,Office for National Statistics,02/03/2023,Exp - Purchase Of Goods/Services - Contractors,Data Architecture,LA FOSSE ASSOCIATES LIMITED,258727," 10,800.00 ",Information Management Services,Large,Programme Expenditure
UK Statistics Family,Office for National Statistics,02/03/2023,Exp - Purchase Of Goods/Services - Contractors,Digital Delivery,LA FOSSE ASSOCIATES LIMITED,258727," 13,680.00 ",Information Management Services,Large,Programme Expenditure
UK Statistics Family,Office for National Statistics,02/03/2023,Exp - Purchase Of Goods/Services - IT Contractual Services,Digital Delivery,Armakuni Ltd,258729," 42,240.00 ",Information Management Services,SME,Programme Expenditure
UK Statistics Family,Office for National Statistics,02/03/2023,Other Goods And Services,ONS Corporate Funds,Edenred (UK Group) Limited,258730," 67,850.00 ",Performance Reward Vouchers,Large,Programme Expenditure
UK Statistics Family,Office for National Statistics,02/03/2023,Exp - Purchase Of Goods/Services - Contractors,Programme Support,Parity Resources Limited,258731," 3,600.00 ",Information Management Services,Large,Programme Expenditure
UK Statistics Family,Office for National Statistics,02/03/2023,Exp - Short-Term Contract & Agency Staff - Full Cost,Recruitment ,Parity Resources Limited,258731, 301.92 ,Information Management Services,Large,Programme Expenditure
UK Statistics Family,Office for National Statistics,02/03/2023,Exp - Purchase Of Goods/Services - Contractors,Data Architecture,Parity Resources Limited,258731," 4,810.50 ",Information Management Services,Large,Programme Expenditure
UK Statistics Family,Office for National Statistics,02/03/2023,Exp - Purchase Of Goods/Services - Contractors,Tech Delivery Legacy Sp,Parity Resources Limited,258731," 2,699.22 ",Information Management Services,Large,Programme Expenditure
UK Statistics Family,Office for National Statistics,02/03/2023,Exp - Purchase Of Goods/Services - Contractors,Tech Delivery Next Gen IT And Infrastructure,Parity Resources Limited,258731," 8,421.00 ",Information Management Services,Large,Programme Expenditure
UK Statistics Family,Office for National Statistics,02/03/2023,Exp - Purchase Of Goods/Services - Contractors,IT Operations,Parity Resources Limited,258731," 7,390.50 ",Information Management Services,Large,Programme Expenditure
UK Statistics Family,Office for National Statistics,03/03/2023,Capital Major Works >25K,Property Newport,Intellectual Property Office,258845," 51,515.77 ",Shared Facility Costs,Large,Programme Expenditure
UK Statistics Family,Office for National Statistics,03/03/2023,Surveys,Social Surveys Division,Natcen Social Research,258846," 87,640.80 ",Statistical Services,Large,Programme Expenditure
UK Statistics Family,Office for National Statistics,03/03/2023,Exp - Purchase Of Goods/Services - Contractors,Beyond 2021 Research And Design,Concept Information Technology Ltd T/A Concept Resourcing,258848," 6,340.90 ",Information Management Services,Large,Programme Expenditure
UK Statistics Family,Office for National Statistics,03/03/2023,Exp - Short-Term Contract & Agency Staff - Full Cost,Business Change Support,Concept Information Technology Ltd T/A Concept Resourcing,258848," 4,218.00 ",Information Management Services,Large,Programme Expenditure
UK Statistics Family,Office for National Statistics,03/03/2023,Exp - Short-Term Contract & Agency Staff - Full Cost,Business Change Support,Concept Information Technology Ltd T/A Concept Resourcing,258848," 9,494.84 ",Information Management Services,Large,Programme Expenditure
UK Statistics Family,Office for National Statistics,03/03/2023,Exp - Short-Term Contract & Agency Staff - Full Cost,Business Change Support,Concept Information Technology Ltd T/A Concept Resourcing,258848," 3,298.03 ",Information Management Services,Large,Programme Expenditure
UK Statistics Family,Office for National Statistics,03/03/2023,Exp - Short-Term Contract & Agency Staff - Full Cost,Business Change Support,Concept Information Technology Ltd T/A Concept Resourcing,258848, 659.62 ,Information Management Services,Large,Programme Expenditure
UK Statistics Family,Office for National Statistics,03/03/2023,Exp - Short-Term Contract & Agency Staff - Full Cost,Business Change Support,Concept Information Technology Ltd T/A Concept Resourcing,258848," 7,516.03 ",Information Management Services,Large,Programme Expenditure
UK Statistics Family,Office for National Statistics,03/03/2023,Exp - Short-Term Contract & Agency Staff - Full Cost,Business Change Support,Concept Information Technology Ltd T/A Concept Resourcing,258848," 3,298.03 ",Information Management Services,Large,Programme Expenditure
UK Statistics Family,Office for National Statistics,03/03/2023,Exp - Short-Term Contract & Agency Staff - Full Cost,N A Coordination,Concept Information Technology Ltd T/A Concept Resourcing,258848," 4,218.00 ",Information Management Services,Large,Programme Expenditure
UK Statistics Family,Office for National Statistics,03/03/2023,Exp - Short-Term Contract & Agency Staff - Full Cost,"SUB-NATIONAL STATISTICS AND ANALYSIS
",Concept Information Technology Ltd T/A Concept Resourcing,258848," 3,390.17 ",Information Management Services,Large,Programme Expenditure
UK Statistics Family,Office for National Statistics,03/03/2023,Exp - Short-Term Contract & Agency Staff - Full Cost,Strategy And Architecture,Concept Information Technology Ltd T/A Concept Resourcing,258848," 2,317.54 ",Information Management Services,Large,Programme Expenditure
UK Statistics Family,Office for National Statistics,03/03/2023,Exp - Short-Term Contract & Agency Staff - Full Cost,Prices Division,Concept Information Technology Ltd T/A Concept Resourcing,258848," 4,218.00 ",Information Management Services,Large,Programme Expenditure
UK Statistics Family,Office for National Statistics,03/03/2023,Exp - Short-Term Contract & Agency Staff - Full Cost,Business Outputs And Developments,Concept Information Technology Ltd T/A Concept Resourcing,258848," 8,436.00 ",Information Management Services,Large,Programme Expenditure
UK Statistics Family,Office for National Statistics,03/03/2023,Surveys,Social Surveys Division,Nisra,258854," 249,775.24 ",Information Management Services,Large,Programme Expenditure
UK Statistics Family,Office for National Statistics,03/03/2023,Exp - Purchase Of Goods/Services - Incentive Payments,Covid Infection Survey,Sodexo Motivation Solutions U.K. ltd,258859," 102,108.60 ",Survey Response Incentive Vouchers,Large,Programme Expenditure
UK Statistics Family,Office for National Statistics,03/03/2023,Exp - Purchase Of Goods/Services - Contractors,Data Architecture,SmartSourcing Ltd,258860," 17,984.64 ",Information Management Services,SME,Programme Expenditure
UK Statistics Family,Office for National Statistics,03/03/2023,Exp - Purchase Of Goods/Services - Contractors,IT Operations,SmartSourcing Ltd,258860," 20,400.00 ",Information Management Services,SME,Programme Expenditure
UK Statistics Family,Office for National Statistics,03/03/2023,Exp - Purchase Of Goods/Services - Contractors,Data As A Service,SmartSourcing Ltd,258860," 13,184.64 ",Information Management Services,SME,Programme Expenditure
UK Statistics Family,Office for National Statistics,03/03/2023,Postage,Interviewer Support,Banner Group Ltd,258863," 65,960.00 ",Postage Costs,SME,Programme Expenditure
UK Statistics Family,Office for National Statistics,03/03/2023,End User Software And Hardware,IT Operations,Boxxe Ltd,258865," 26,251.78 ",Software Licenses,SME,Programme Expenditure
UK Statistics Family,Office for National Statistics,03/03/2023,Surveys,GSS Strategy Delivery,Clearview Research,258868," 45,501.60 ",Statistical Services,SME,Programme Expenditure
UK Statistics Family,Office for National Statistics,03/03/2023,Surveys,Prices Division,Kantar Public UK Ltd.,258871," 225,423.80 ",Statistical Services,SME,Programme Expenditure
UK Statistics Family,Office for National Statistics,03/03/2023,Exp - Short-Term Contract & Agency Staff - Full Cost,Beyond 2021 Research And Design,Talent International,258872," 4,431.12 ",Information Management Services,SME,Programme Expenditure
UK Statistics Family,Office for National Statistics,03/03/2023,Exp - Purchase Of Goods/Services - Contractors,ECONOMIC CHANGE,Talent International,258872," 10,260.00 ",Information Management Services,SME,Programme Expenditure
UK Statistics Family,Office for National Statistics,03/03/2023,Exp - Short-Term Contract & Agency Staff - Full Cost,Census & Soc Methodology Dd,Talent International,258872," 2,215.56 ",Information Management Services,SME,Programme Expenditure
UK Statistics Family,Office for National Statistics,03/03/2023,Exp - Purchase Of Goods/Services - Contractors,Data Architecture,Talent International,258872," 19,589.94 ",Information Management Services,SME,Programme Expenditure
UK Statistics Family,Office for National Statistics,03/03/2023,Exp - Purchase Of Goods/Services - Contractors,Strategy And Architecture,Talent International,258872," 16,800.00 ",Information Management Services,SME,Programme Expenditure
UK Statistics Family,Office for National Statistics,03/03/2023,Exp - Purchase Of Goods/Services - Contractors,IT Operations,Talent International,258872," 32,039.76 ",Information Management Services,SME,Programme Expenditure
UK Statistics Family,Office for National Statistics,03/03/2023,Exp - Purchase Of Goods/Services - Contractors,IT Operations,Talent International,258872," 2,520.00 ",Information Management Services,SME,Programme Expenditure
UK Statistics Family,Office for National Statistics,03/03/2023,Exp - Short-Term Contract & Agency Staff - Full Cost,Data Science Campus,Talent International,258872," 5,014.18 ",Information Management Services,SME,Programme Expenditure
UK Statistics Family,Office for National Statistics,06/03/2023,Surveys,Social Surveys Division,Natcen Social Research,258982," 2,696,101.00 ",Statistical Services,Large,Programme Expenditure
UK Statistics Family,Office for National Statistics,06/03/2023,Capital Major Works >25K,Property Newport,Vinci Construction UK Limited,258983," 24,000.00 ",Facilities Mangement Services,Large,Programme Expenditure
UK Statistics Family,Office for National Statistics,06/03/2023,Capital Major Works >25K,Property Titchfield,Vinci Construction UK Limited,258983," 144,000.00 ",Facilities Mangement Services,Large,Programme Expenditure
UK Statistics Family,Office for National Statistics,06/03/2023,Exp - Purchase Of Goods/Services - IT Contractual Services,IT Operations,Ibm United Kingdom Ltd,258985," 99,711.72 ",Information Management Services,Large,Programme Expenditure
UK Statistics Family,Office for National Statistics,06/03/2023,Exp - Purchase Of Goods/Services - IT Contractual Services,IT Operations,Ibm United Kingdom Ltd,258985," 106,626.00 ",Information Management Services,Large,Programme Expenditure
UK Statistics Family,Office for National Statistics,06/03/2023,Exp - Purchase Of Goods/Services - Contractors,Testing,Certes Computing Ltd,258989," 12,086.12 ",Information Management Services,SME,Programme Expenditure
UK Statistics Family,Office for National Statistics,06/03/2023,Exp - Purchase Of Goods/Services - Contractors,Data Architecture,Certes Computing Ltd,258989," 8,400.00 ",Information Management Services,SME,Programme Expenditure
UK Statistics Family,Office for National Statistics,06/03/2023,Exp - Purchase Of Goods/Services - Contractors,Data Architecture,Certes Computing Ltd,258989," 9,180.36 ",Information Management Services,SME,Programme Expenditure
UK Statistics Family,Office for National Statistics,06/03/2023,Exp - Purchase Of Goods/Services - Contractors,Data Architecture,Certes Computing Ltd,258989," 13,759.34 ",Information Management Services,SME,Programme Expenditure
UK Statistics Family,Office for National Statistics,06/03/2023,Hosting,CLOUD ARCHITECTURE,Amazon Web Services Inc,258994," 241,401.10 ",Information Management Services,Large,Programme Expenditure
UK Statistics Family,Office for National Statistics,06/03/2023,Hosting,CDIO UNGP,Amazon Web Services Inc,258994, 1.42 ,Information Management Services,Large,Programme Expenditure
UK Statistics Family,Office for National Statistics,06/03/2023,Exp - Purchase Of Goods/Services - Contractors,IT Operations,SmartSourcing Ltd,258996," 14,235.41 ",Information Management Services,SME,Programme Expenditure
UK Statistics Family,Office for National Statistics,06/03/2023,Exp - Purchase Of Goods/Services - Contractors,IT Operations,SmartSourcing Ltd,258996," 12,467.71 ",Information Management Services,SME,Programme Expenditure
UK Statistics Family,Office for National Statistics,06/03/2023,Exp - Purchase Of Goods/Services - IT Contractual Services,Strategy And Architecture,Chaucer Group Ltd,258999," 25,695.60 ",Information Management Services,SME,Programme Expenditure
UK Statistics Family,Office for National Statistics,06/03/2023,Exp - Purchase Of Goods/Services - Contractors,Covid Infection Survey,Talent International,259000," 18,200.00 ",Information Management Services,SME,Programme Expenditure
UK Statistics Family,Office for National Statistics,06/03/2023,Exp - Purchase Of Goods/Services - Contractors,Covid Infection Survey,Talent International,259000," 13,000.00 ",Information Management Services,SME,Programme Expenditure
UK Statistics Family,Office for National Statistics,06/03/2023,Exp - Purchase Of Goods/Services - Contractors,Data Architecture,Talent International,259000," 16,800.00 ",Information Management Services,SME,Programme Expenditure
UK Statistics Family,Office for National Statistics,06/03/2023,Exp - Purchase Of Goods/Services - Contractors,Tech Delivery Legacy Sp,Talent International,259000," 19,176.00 ",Information Management Services,SME,Programme Expenditure
UK Statistics Family,Office for National Statistics,07/03/2023,Capital Minor Works <25K,Property Newport,Vinci Construction UK Limited,259199," 17,517.24 ",Facilities Mangement Services,Large,Programme Expenditure
UK Statistics Family,Office for National Statistics,07/03/2023,Capital Major Works >25K,Property Newport,Vinci Construction UK Limited,259199," 46,978.28 ",Facilities Mangement Services,Large,Programme Expenditure
UK Statistics Family,Office for National Statistics,07/03/2023,Accommodation & Building Management,Property London,Vinci Construction UK Limited,259199," 25,780.00 ",Facilities Mangement Services,Large,Programme Expenditure
UK Statistics Family,Office for National Statistics,07/03/2023,Exp - Short-Term Contract & Agency Staff - Full Cost,GSS Strategy Delivery,Concept Information Technology Ltd T/A Concept Resourcing,259200," 3,947.27 ",Information Management Services,Large,Programme Expenditure
UK Statistics Family,Office for National Statistics,07/03/2023,Exp - Short-Term Contract & Agency Staff - Full Cost,GSS Strategy Delivery,Concept Information Technology Ltd T/A Concept Resourcing,259200," 4,218.00 ",Information Management Services,Large,Programme Expenditure
UK Statistics Family,Office for National Statistics,07/03/2023,Exp - Short-Term Contract & Agency Staff - Full Cost,Business Change Support,Concept Information Technology Ltd T/A Concept Resourcing,259200," 4,218.00 ",Information Management Services,Large,Programme Expenditure
UK Statistics Family,Office for National Statistics,07/03/2023,Exp - Short-Term Contract & Agency Staff - Full Cost,Business Change Support,Concept Information Technology Ltd T/A Concept Resourcing,259200," 11,427.19 ",Information Management Services,Large,Programme Expenditure
UK Statistics Family,Office for National Statistics,07/03/2023,Exp - Short-Term Contract & Agency Staff - Full Cost,Business Change Support,Concept Information Technology Ltd T/A Concept Resourcing,259200," 8,570.53 ",Information Management Services,Large,Programme Expenditure
UK Statistics Family,Office for National Statistics,07/03/2023,Exp - Short-Term Contract & Agency Staff - Full Cost,International Trade And Transactions,Concept Information Technology Ltd T/A Concept Resourcing,259200," 5,177.04 ",Information Management Services,Large,Programme Expenditure
UK Statistics Family,Office for National Statistics,07/03/2023,Exp - Short-Term Contract & Agency Staff - Full Cost,International Trade And Transactions,Concept Information Technology Ltd T/A Concept Resourcing,259200," 3,298.03 ",Information Management Services,Large,Programme Expenditure
UK Statistics Family,Office for National Statistics,07/03/2023,Exp - Short-Term Contract & Agency Staff - Full Cost,International Trade And Transactions,Concept Information Technology Ltd T/A Concept Resourcing,259200," 4,218.00 ",Information Management Services,Large,Programme Expenditure
UK Statistics Family,Office for National Statistics,07/03/2023,Exp - Short-Term Contract & Agency Staff - Full Cost,Sustainability And Inequalities,Concept Information Technology Ltd T/A Concept Resourcing,259200," 4,004.26 ",Information Management Services,Large,Programme Expenditure
UK Statistics Family,Office for National Statistics,07/03/2023,Exp - Short-Term Contract & Agency Staff - Full Cost,Business Architecture Transformation And Statistical Strategy,Concept Information Technology Ltd T/A Concept Resourcing,259200," 4,218.00 ",Information Management Services,Large,Programme Expenditure
UK Statistics Family,Office for National Statistics,07/03/2023,Exp - Short-Term Contract & Agency Staff - Full Cost,"SUB-NATIONAL STATISTICS AND ANALYSIS
",Concept Information Technology Ltd T/A Concept Resourcing,259200," 4,218.00 ",Information Management Services,Large,Programme Expenditure
UK Statistics Family,Office for National Statistics,07/03/2023,Exp - Short-Term Contract & Agency Staff - Full Cost,"SUB-NATIONAL STATISTICS AND ANALYSIS
",Concept Information Technology Ltd T/A Concept Resourcing,259200," 8,225.10 ",Information Management Services,Large,Programme Expenditure
UK Statistics Family,Office for National Statistics,07/03/2023,Exp - Short-Term Contract & Agency Staff - Full Cost,Public Sector And Households,Concept Information Technology Ltd T/A Concept Resourcing,259200," 4,218.00 ",Information Management Services,Large,Programme Expenditure
UK Statistics Family,Office for National Statistics,07/03/2023,Exp - Short-Term Contract & Agency Staff - Full Cost,Social Surveys Division,Concept Information Technology Ltd T/A Concept Resourcing,259200," 4,007.10 ",Information Management Services,Large,Programme Expenditure
UK Statistics Family,Office for National Statistics,07/03/2023,Exp - Purchase Of Goods And Services Consultants,2023 CENSUS DATA TRANSFORMATION,The Sensible Code Company,259212," 128,781.00 ",Statistical Services,SME,Programme Expenditure
UK Statistics Family,Office for National Statistics,07/03/2023,Exp - Purchase Of Goods/Services - Incentive Payments,Survey Management,Sodexo Motivation Solutions U.K. ltd,259213," 1,541.86 ",Survey Response Incentive Vouchers,Large,Programme Expenditure
UK Statistics Family,Office for National Statistics,07/03/2023,Exp - Purchase Of Goods/Services - Incentive Payments,Survey Management,Sodexo Motivation Solutions U.K. ltd,259213," 1,505.57 ",Survey Response Incentive Vouchers,Large,Programme Expenditure
UK Statistics Family,Office for National Statistics,07/03/2023,Exp - Purchase Of Goods/Services - Incentive Payments,Survey Management,Sodexo Motivation Solutions U.K. ltd,259213," 2,127.28 ",Survey Response Incentive Vouchers,Large,Programme Expenditure
UK Statistics Family,Office for National Statistics,07/03/2023,Exp - Purchase Of Goods/Services - Incentive Payments,Survey Management,Sodexo Motivation Solutions U.K. ltd,259213," 38,576.48 ",Survey Response Incentive Vouchers,Large,Programme Expenditure
UK Statistics Family,Office for National Statistics,07/03/2023,Exp - Purchase Of Goods/Services - Incentive Payments,Survey Management,Sodexo Motivation Solutions U.K. ltd,259213," 7,142.67 ",Survey Response Incentive Vouchers,Large,Programme Expenditure
UK Statistics Family,Office for National Statistics,07/03/2023,Exp - Purchase Of Goods/Services - Incentive Payments,Survey Management,Sodexo Motivation Solutions U.K. ltd,259213," 14,346.95 ",Survey Response Incentive Vouchers,Large,Programme Expenditure
UK Statistics Family,Office for National Statistics,07/03/2023,Exp - Purchase Of Goods/Services - Incentive Payments,Covid Infection Survey,Sodexo Motivation Solutions U.K. ltd,259213, 205.22 ,Survey Response Incentive Vouchers,Large,Programme Expenditure
UK Statistics Family,Office for National Statistics,07/03/2023,Exp - Purchase Of Goods/Services - Incentive Payments,Crime Statistics,Sodexo Motivation Solutions U.K. ltd,259213, 49.35 ,Survey Response Incentive Vouchers,Large,Programme Expenditure
UK Statistics Family,Office for National Statistics,07/03/2023,Exp - Purchase Of Goods/Services - Incentive Payments,Survey Management,Sodexo Motivation Solutions U.K. ltd,259213," 17,823.44 ",Survey Response Incentive Vouchers,Large,Programme Expenditure
UK Statistics Family,Office for National Statistics,07/03/2023,Exp - Purchase Of Goods/Services - Incentive Payments,Survey Management,Sodexo Motivation Solutions U.K. ltd,259213," 3,779.77 ",Survey Response Incentive Vouchers,Large,Programme Expenditure
UK Statistics Family,Office for National Statistics,07/03/2023,Exp - Purchase Of Goods And Services Consultants,Security Advisory,Bridewell Consulting Limited,259217," 69,000.00 ",Consultancy,SME,Programme Expenditure
UK Statistics Family,Office for National Statistics,07/03/2023,Exp - Short-Term Contract & Agency Staff - Full Cost,Finance,Talent International,259222," 8,724.35 ",Information Management Services,SME,Programme Expenditure
UK Statistics Family,Office for National Statistics,07/03/2023,Exp - Short-Term Contract & Agency Staff - Full Cost,Planning And Info Governance,Talent International,259222, 328.38 ,Information Management Services,SME,Programme Expenditure
UK Statistics Family,Office for National Statistics,07/03/2023,Exp - Short-Term Contract & Agency Staff - Full Cost,Recruitment ,Talent International,259222," 1,107.78 ",Information Management Services,SME,Programme Expenditure
UK Statistics Family,Office for National Statistics,07/03/2023,Exp - Short-Term Contract & Agency Staff - Full Cost,REPROGRAPHICS,Talent International,259222," 3,083.14 ",Information Management Services,SME,Programme Expenditure
UK Statistics Family,Office for National Statistics,07/03/2023,Exp - Purchase Of Goods/Services - Contractors,Security Advisory,Talent International,259222," 14,249.81 ",Information Management Services,SME,Programme Expenditure
UK Statistics Family,Office for National Statistics,07/03/2023,Exp - Short-Term Contract & Agency Staff - Full Cost,Population Statistics Div,Talent International,259222," 11,520.91 ",Information Management Services,SME,Programme Expenditure
UK Statistics Family,Office for National Statistics,07/03/2023,Exp - Short-Term Contract & Agency Staff - Full Cost,Data Science Campus,Talent International,259222," 3,899.92 ",Information Management Services,SME,Programme Expenditure
UK Statistics Family,Office for National Statistics,07/03/2023,"ICT Outsourcing, Maintenance And Support",Finance,iCoTech Services,259223," 27,000.00 ",Information Management Services,SME,Programme Expenditure
UK Statistics Family,Office for National Statistics,07/03/2023,Marketing & Media,Divisional Management,Tinopolis Interactive Ltd,259225," 29,062.80 ",Marketing and Media Services,SME,Programme Expenditure
UK Statistics Family,Office for National Statistics,08/03/2023,Exp - Purchase Of Goods/Services - Contractors,BUSINESS STRATEGY PERFORMANCE AND PMO,Parity Resources Limited,259373," 22,170.68 ",Information Management Services,Large,Programme Expenditure
UK Statistics Family,Office for National Statistics,08/03/2023,Exp - Purchase Of Goods/Services - Contractors,Data Architecture,Parity Resources Limited,259373," 4,810.50 ",Information Management Services,Large,Programme Expenditure
UK Statistics Family,Office for National Statistics,08/03/2023,Exp - Purchase Of Goods/Services - Contractors,Strategy And Architecture,Parity Resources Limited,259373," 16,842.00 ",Information Management Services,Large,Programme Expenditure
UK Statistics Family,Office for National Statistics,08/03/2023,Exp - Purchase Of Goods/Services - Contractors,Tech Delivery Legacy Sp,Parity Resources Limited,259373," 2,699.22 ",Information Management Services,Large,Programme Expenditure
UK Statistics Family,Office for National Statistics,08/03/2023,Exp - Purchase Of Goods/Services - Contractors,Tech Delivery Next Gen IT And Infrastructure,Parity Resources Limited,259373," 2,400.30 ",Information Management Services,Large,Programme Expenditure
UK Statistics Family,Office for National Statistics,08/03/2023,Exp - Short-Term Contract & Agency Staff - Full Cost,Interviewer Management FiF,Parity Resources Limited,259373," 3,403.53 ",Information Management Services,Large,Programme Expenditure
UK Statistics Family,Office for National Statistics,08/03/2023,Exp - Purchase Of Goods/Services - Census Field Costs,Interviewer Management FiF,Parity Resources Limited,259373, 513.53 ,Information Management Services,Large,Programme Expenditure
UK Statistics Family,Office for National Statistics,08/03/2023,Exp - Purchase Of Goods And Services Consultants,Business Architecture Transformation And Statistical Strategy,Matt Hamnet & Associates Ltd,259378," 58,102.57 ",Consultancy,SME,Programme Expenditure
UK Statistics Family,Office for National Statistics,08/03/2023,Exp - Purchase Of Goods And Services Consultants,"SUB-NATIONAL STATISTICS AND ANALYSIS
",Matt Hamnet & Associates Ltd,259378," 37,547.84 ",Consultancy,SME,Programme Expenditure
UK Statistics Family,Office for National Statistics,08/03/2023,End User Software And Hardware,IT Operations,Scc,259381," 152,934.86 ",Computers and Peripherals,Large,Programme Expenditure
UK Statistics Family,Office for National Statistics,08/03/2023,"ICT Outsourcing, Maintenance And Support",IT Operations,ITS Computing Limited,259383," 145,200.00 ",Information Management Services,Large,Programme Expenditure
UK Statistics Family,Office for National Statistics,08/03/2023,Exp - Purchase Of Goods/Services - Contractors,Data Architecture,Certes Computing Ltd,259384," 16,758.68 ",Information Management Services,SME,Programme Expenditure
UK Statistics Family,Office for National Statistics,08/03/2023,Exp - Purchase Of Goods/Services - Contractors,Digital Delivery,Certes Computing Ltd,259384," 12,600.00 ",Information Management Services,SME,Programme Expenditure
UK Statistics Family,Office for National Statistics,08/03/2023,Exp - Purchase Of Goods/Services - Contractors,Testing,La International,259385," 13,851.11 ",Information Management Services,SME,Programme Expenditure
UK Statistics Family,Office for National Statistics,08/03/2023,Exp - Purchase Of Goods/Services - Contractors,Testing,La International,259385," 3,317.65 ",Information Management Services,SME,Programme Expenditure
UK Statistics Family,Office for National Statistics,08/03/2023,Exp - Purchase Of Goods/Services - Contractors,Data Architecture,La International,259385," 46,493.12 ",Information Management Services,SME,Programme Expenditure
UK Statistics Family,Office for National Statistics,08/03/2023,Exp - Purchase Of Goods/Services - Contractors,Data Architecture,La International,259385," 4,281.18 ",Information Management Services,SME,Programme Expenditure
UK Statistics Family,Office for National Statistics,08/03/2023,Exp - Purchase Of Goods/Services - Contractors,IT Applications,La International,259385," 13,743.54 ",Information Management Services,SME,Programme Expenditure
UK Statistics Family,Office for National Statistics,08/03/2023,Exp - Purchase Of Goods/Services - Contractors,IT Operations,La International,259385," 24,643.20 ",Information Management Services,SME,Programme Expenditure
UK Statistics Family,Office for National Statistics,08/03/2023,Exp - Short-Term Contract & Agency Staff - Full Cost,Programme Support,Malikshaw Interim & Executive,259389, 854.70 ,Information Management Services,SME,Programme Expenditure
UK Statistics Family,Office for National Statistics,08/03/2023,Exp - Purchase Of Goods/Services - Contractors,INTEGRATED DATA STRATEGY AND DELIVERY,Malikshaw Interim & Executive,259389," 13,751.52 ",Information Management Services,SME,Programme Expenditure
UK Statistics Family,Office for National Statistics,08/03/2023,Exp - Purchase Of Goods/Services - Contractors,Data Architecture,Malikshaw Interim & Executive,259389," 13,017.60 ",Information Management Services,SME,Programme Expenditure
UK Statistics Family,Office for National Statistics,08/03/2023,Exp - Purchase Of Goods/Services - Contractors,DATA ENGINEERING OPERATIONS AND DELIVERY,Malikshaw Interim & Executive,259389," 18,672.00 ",Information Management Services,SME,Programme Expenditure
UK Statistics Family,Office for National Statistics,08/03/2023,Hosting,CLOUD ARCHITECTURE,CTS (Cloud Technology Solutions Ltd),259390, 78.30 ,Information Management Services,Large,Programme Expenditure
UK Statistics Family,Office for National Statistics,08/03/2023,Hosting,CLOUD ARCHITECTURE,CTS (Cloud Technology Solutions Ltd),259390," 174,100.27 ",Information Management Services,Large,Programme Expenditure
UK Statistics Family,Office for National Statistics,08/03/2023,Exp - Purchase Of Goods/Services - IT Contractual Services,CDIO UNGP,Methods Business & Digital Technology Ltd,259391," 31,980.00 ",Information Management Services,Large,Programme Expenditure
UK Statistics Family,Office for National Statistics,08/03/2023,Exp - Purchase Of Goods/Services - IT Contractual Services,Digital Delivery,Methods Business & Digital Technology Ltd,259391," 298,020.00 ",Information Management Services,Large,Programme Expenditure
UK Statistics Family,Office for National Statistics,08/03/2023,Exp - Purchase Of Goods/Services - IT Contractual Services,IT Applications,Diegesis Limited,259392," 264,750.00 ",Information Management Services,Large,Programme Expenditure
UK Statistics Family,Office for National Statistics,09/03/2023,Exp - Short-Term Contract & Agency Staff - Full Cost,Business Change Support,Concept Information Technology Ltd T/A Concept Resourcing,259501," 3,298.03 ",Information Management Services,Large,Programme Expenditure
UK Statistics Family,Office for National Statistics,09/03/2023,Exp - Short-Term Contract & Agency Staff - Full Cost,Business Change Support,Concept Information Technology Ltd T/A Concept Resourcing,259501," 5,272.50 ",Information Management Services,Large,Programme Expenditure
UK Statistics Family,Office for National Statistics,09/03/2023,Exp - Short-Term Contract & Agency Staff - Full Cost,Business Change Support,Concept Information Technology Ltd T/A Concept Resourcing,259501," 4,018.50 ",Information Management Services,Large,Programme Expenditure
UK Statistics Family,Office for National Statistics,09/03/2023,Exp - Short-Term Contract & Agency Staff - Full Cost,Business Change Support,Concept Information Technology Ltd T/A Concept Resourcing,259501," 4,007.10 ",Information Management Services,Large,Programme Expenditure
UK Statistics Family,Office for National Statistics,09/03/2023,Exp - Short-Term Contract & Agency Staff - Full Cost,STRATEGY SYNTHESIS AND CO-ORDINATION,Concept Information Technology Ltd T/A Concept Resourcing,259501," 1,576.60 ",Information Management Services,Large,Programme Expenditure
UK Statistics Family,Office for National Statistics,09/03/2023,Exp - Short-Term Contract & Agency Staff - Full Cost,ANALYSIS FUNCTION STRATEGY AND DELIVERY,Concept Information Technology Ltd T/A Concept Resourcing,259501," 3,163.50 ",Information Management Services,Large,Programme Expenditure
UK Statistics Family,Office for National Statistics,09/03/2023,Exp - Purchase Of Goods/Services - Contractors,CDIO UNGP,Concept Information Technology Ltd T/A Concept Resourcing,259501," 14,090.88 ",Information Management Services,Large,Programme Expenditure
UK Statistics Family,Office for National Statistics,09/03/2023,Specialist User Software And Hardware,IT Operations,Phoenix Software Ltd,259503," 25,648.13 ",Software Licenses,SME,Programme Expenditure
UK Statistics Family,Office for National Statistics,09/03/2023,Surveys,ECONOMIC CHANGE,Chamber of Shipping Ltd,259508," 26,880.00 ",Data Aqcuisition,SME,Programme Expenditure
UK Statistics Family,Office for National Statistics,09/03/2023,Exp - Purchase Of Goods/Services - Contractors,CDIO UNGP,Malikshaw Interim & Executive,259510," 15,600.00 ",Information Management Services,SME,Programme Expenditure
UK Statistics Family,Office for National Statistics,09/03/2023,Exp - Purchase Of Goods/Services - Contractors,IT Operations,Malikshaw Interim & Executive,259510," 17,952.00 ",Information Management Services,SME,Programme Expenditure
UK Statistics Family,Office for National Statistics,09/03/2023,Exp - Purchase Of Goods/Services - Contractors,Programme Support,Parity Resources Limited,259515," 3,600.00 ",Information Management Services,Large,Programme Expenditure
UK Statistics Family,Office for National Statistics,09/03/2023,Exp - Purchase Of Goods/Services - Contractors,Security Advisory,Parity Resources Limited,259515," 33,981.90 ",Information Management Services,Large,Programme Expenditure
UK Statistics Family,Office for National Statistics,09/03/2023,Exp - Purchase Of Goods/Services - Contractors,CDIO UNGP,Parity Resources Limited,259515," 9,201.00 ",Information Management Services,Large,Programme Expenditure
UK Statistics Family,Office for National Statistics,09/03/2023,Exp - Purchase Of Goods/Services - Contractors,Strategy And Architecture,Parity Resources Limited,259515," 4,210.50 ",Information Management Services,Large,Programme Expenditure
UK Statistics Family,Office for National Statistics,09/03/2023,Exp - Purchase Of Goods/Services - Contractors,Tech Delivery Next Gen IT And Infrastructure,Parity Resources Limited,259515," 5,052.60 ",Information Management Services,Large,Programme Expenditure
UK Statistics Family,Office for National Statistics,09/03/2023,Exp - Purchase Of Goods/Services - Contractors,IT Applications,Parity Resources Limited,259515," 24,300.00 ",Information Management Services,Large,Programme Expenditure
UK Statistics Family,Office for National Statistics,09/03/2023,Exp - Purchase Of Goods/Services - Contractors,IT Operations,Parity Resources Limited,259515," 8,350.50 ",Information Management Services,Large,Programme Expenditure
UK Statistics Family,Office for National Statistics,09/03/2023,Exp - Purchase Of Goods/Services - Contractors,DATA ENGINEERING OPERATIONS AND DELIVERY,Parity Resources Limited,259515," 15,642.00 ",Information Management Services,Large,Programme Expenditure
UK Statistics Family,Office for National Statistics,10/03/2023,Exp - Purchase Of Goods/Services - Incentive Payments,Covid Infection Survey,Sodexo Motivation Solutions U.K. ltd,259639," 93,888.90 ",Survey Response Incentive Vouchers,Large,Programme Expenditure
UK Statistics Family,Office for National Statistics,10/03/2023,Exp - Purchase Of Goods And Services Consultants,Property London,Government Property Agency (GPA),259647," 17,269.10 ",Office Relocation Support,Large,Programme Expenditure
UK Statistics Family,Office for National Statistics,10/03/2023,Exp - Purchase Of Goods And Services Consultants,Property London,Government Property Agency (GPA),259647," 21,626.40 ",Office Relocation Support,Large,Programme Expenditure
UK Statistics Family,Office for National Statistics,13/03/2023,Hosting,IT Operations,Crown Hosting Data Centres Limited,259747," 26,427.06 ",Information Management Services,SME,Programme Expenditure
UK Statistics Family,Office for National Statistics,14/03/2023,"ICT Outsourcing, Maintenance And Support",IT Operations,Oracle Corporation UK Ltd,259993," 38,743.80 ",Information Management Services,Large,Programme Expenditure
UK Statistics Family,Office for National Statistics,14/03/2023,End User Software And Hardware,IT Operations,Clearvision-Cm,259994," 331,953.70 ",Software Licenses,SME,Programme Expenditure
UK Statistics Family,Office for National Statistics,14/03/2023,Buildings Under Construction,Property Newport,Vinci Construction UK Limited,259995," 146,208.12 ",Facilities Mangement Services,Large,Programme Expenditure
UK Statistics Family,Office for National Statistics,14/03/2023,Capital Minor Works <25K,Property Newport,Vinci Construction UK Limited,259995," 10,058.63 ",Facilities Mangement Services,Large,Programme Expenditure
UK Statistics Family,Office for National Statistics,14/03/2023,FM Contract Payments,Vinci Payments,Vinci Construction UK Limited,259995," 289,668.97 ",Facilities Mangement Services,Large,Programme Expenditure
UK Statistics Family,Office for National Statistics,14/03/2023,Exp - Short-Term Contract & Agency Staff - Full Cost,"SUB-NATIONAL STATISTICS AND ANALYSIS
",Concept Information Technology Ltd T/A Concept Resourcing,259996," 4,218.00 ",Information Management Services,Large,Programme Expenditure
UK Statistics Family,Office for National Statistics,14/03/2023,Exp - Short-Term Contract & Agency Staff - Full Cost,Best Practice And Impact,Concept Information Technology Ltd T/A Concept Resourcing,259996," 20,420.25 ",Information Management Services,Large,Programme Expenditure
UK Statistics Family,Office for National Statistics,14/03/2023,Exp - Short-Term Contract & Agency Staff - Full Cost,Crime Income And Wealth,Concept Information Technology Ltd T/A Concept Resourcing,259996," 5,354.11 ",Information Management Services,Large,Programme Expenditure
UK Statistics Family,Office for National Statistics,14/03/2023,Exp - Short-Term Contract & Agency Staff - Full Cost,Crime Income And Wealth,Concept Information Technology Ltd T/A Concept Resourcing,259996," 17,343.09 ",Information Management Services,Large,Programme Expenditure
UK Statistics Family,Office for National Statistics,14/03/2023,Exp - Short-Term Contract & Agency Staff - Full Cost,Crime Income And Wealth,Concept Information Technology Ltd T/A Concept Resourcing,259996," 10,582.06 ",Information Management Services,Large,Programme Expenditure
UK Statistics Family,Office for National Statistics,14/03/2023,Exp - Short-Term Contract & Agency Staff - Full Cost,Crime Income And Wealth,Concept Information Technology Ltd T/A Concept Resourcing,259996," 9,681.51 ",Information Management Services,Large,Programme Expenditure
UK Statistics Family,Office for National Statistics,14/03/2023,Travel And Subsistence,Corporate Centre,Corporate Travel Management ,259999," 30,031.59 ",Travel and Accommodation,SME,Programme Expenditure
UK Statistics Family,Office for National Statistics,14/03/2023,Exp - Purchase Of Goods/Services - Contractors,Programme Support,Certes Computing Ltd,260000," 14,040.00 ",Information Management Services,SME,Programme Expenditure
UK Statistics Family,Office for National Statistics,14/03/2023,Exp - Purchase Of Goods/Services - Contractors,Security Advisory,Certes Computing Ltd,260000," 19,560.72 ",Information Management Services,SME,Programme Expenditure
UK Statistics Family,Office for National Statistics,14/03/2023,Exp - Purchase Of Goods/Services - Contractors,CLOUD ARCHITECTURE,Certes Computing Ltd,260000," 9,291.35 ",Information Management Services,SME,Programme Expenditure
UK Statistics Family,Office for National Statistics,14/03/2023,Exp - Purchase Of Goods/Services - Contractors,DATA ENGINEERING OPERATIONS AND DELIVERY,Certes Computing Ltd,260000," 17,421.60 ",Information Management Services,SME,Programme Expenditure
UK Statistics Family,Office for National Statistics,14/03/2023,Exp - Purchase Of Goods/Services - IT Contractual Services,CDIO UNGP,Methods Business & Digital Technology Ltd,260007," 20,280.00 ",Information Management Services,Large,Programme Expenditure
UK Statistics Family,Office for National Statistics,14/03/2023,Exp - Purchase Of Goods/Services - IT Contractual Services,Digital Delivery,Methods Business & Digital Technology Ltd,260007," 399,720.00 ",Information Management Services,Large,Programme Expenditure
UK Statistics Family,Office for National Statistics,14/03/2023,Exp - Purchase Of Goods/Services - Contractors,Data Architecture,SmartSourcing Ltd,260009," 25,295.04 ",Information Management Services,SME,Programme Expenditure
UK Statistics Family,Office for National Statistics,14/03/2023,Hosting,CDIO UNGP,Google Cloud EMEA Limited,260011," 89,672.42 ",Information Management Services,Large,Programme Expenditure
UK Statistics Family,Office for National Statistics,15/03/2023,End User Software And Hardware,IT Operations,Gartner (CEB),260169," 47,520.00 ",Information Management Services,Large,Programme Expenditure
UK Statistics Family,Office for National Statistics,15/03/2023,Exp - Purchase Of Goods/Services - IT Contractual Services,PARTNERSHIP DEVELOPMENT,CTS (Cloud Technology Solutions Ltd),260185," 28,776.60 ",Information Management Services,Large,Programme Expenditure
UK Statistics Family,Office for National Statistics,16/03/2023,Exp - Purchase Of Goods/Services - Contractors,Testing,La International,260302," 13,187.58 ",Information Management Services,SME,Programme Expenditure
UK Statistics Family,Office for National Statistics,16/03/2023,Exp - Purchase Of Goods/Services - Contractors,Data Architecture,La International,260302," 7,963.56 ",Information Management Services,SME,Programme Expenditure
UK Statistics Family,Office for National Statistics,16/03/2023,Exp - Purchase Of Goods/Services - Contractors,Data Architecture,La International,260302," 4,281.18 ",Information Management Services,SME,Programme Expenditure
UK Statistics Family,Office for National Statistics,16/03/2023,Exp - Purchase Of Goods/Services - Contractors,Tech Delivery Next Gen IT And Infrastructure,La International,260302," 9,996.01 ",Information Management Services,SME,Programme Expenditure
UK Statistics Family,Office for National Statistics,16/03/2023,Exp - Purchase Of Goods/Services - Contractors,IT Applications,La International,260302," 4,581.18 ",Information Management Services,SME,Programme Expenditure
UK Statistics Family,Office for National Statistics,16/03/2023,Exp - Purchase Of Goods/Services - IT Contractual Services,CDIO UNGP,CTS (Cloud Technology Solutions Ltd),260304," 265,531.20 ",Information Management Services,Large,Programme Expenditure
UK Statistics Family,Office for National Statistics,16/03/2023,Exp - Purchase Of Goods And Services Consultants,Digital Media,Methods Business & Digital Technology Ltd,260306," 96,000.00 ",Information Management Services,Large,Programme Expenditure
UK Statistics Family,Office for National Statistics,16/03/2023,Exp - Purchase Of Goods And Services Consultants,Digital Media,Methods Business & Digital Technology Ltd,260306," 264,000.00 ",Information Management Services,Large,Programme Expenditure
UK Statistics Family,Office for National Statistics,16/03/2023,Exp - Purchase Of Goods/Services - Contractors,Programme Support,Parity Resources Limited,260309," 3,600.00 ",Information Management Services,Large,Programme Expenditure
UK Statistics Family,Office for National Statistics,16/03/2023,Exp - Purchase Of Goods/Services - Contractors,Data Architecture,Parity Resources Limited,260309," 4,810.50 ",Information Management Services,Large,Programme Expenditure
UK Statistics Family,Office for National Statistics,16/03/2023,Exp - Purchase Of Goods/Services - Contractors,CDIO UNGP,Parity Resources Limited,260309," 4,600.50 ",Information Management Services,Large,Programme Expenditure
UK Statistics Family,Office for National Statistics,16/03/2023,Exp - Purchase Of Goods/Services - Contractors,Strategy And Architecture,Parity Resources Limited,260309," 3,789.46 ",Information Management Services,Large,Programme Expenditure
UK Statistics Family,Office for National Statistics,16/03/2023,Exp - Purchase Of Goods/Services - Contractors,Strategy And Architecture,Parity Resources Limited,260309," 3,368.40 ",Information Management Services,Large,Programme Expenditure
UK Statistics Family,Office for National Statistics,16/03/2023,Exp - Purchase Of Goods/Services - Contractors,Tech Delivery Legacy Sp,Parity Resources Limited,260309," 2,699.22 ",Information Management Services,Large,Programme Expenditure
UK Statistics Family,Office for National Statistics,16/03/2023,Exp - Purchase Of Goods/Services - Contractors,IT Operations,Parity Resources Limited,260309," 8,350.50 ",Information Management Services,Large,Programme Expenditure
UK Statistics Family,Office for National Statistics,17/03/2023,Buildings Under Construction,Property Services,Vinci Construction UK Limited,260404," 80,254.19 ",Facilities Mangement Services,Large,Programme Expenditure
UK Statistics Family,Office for National Statistics,17/03/2023,Accommodation & Building Management,Interview Management IPS,Heathrow Airport,260407," 56,492.94 ",Rental Charges,Large,Programme Expenditure
UK Statistics Family,Office for National Statistics,17/03/2023,Surveys,Social Surveys Division,Nisra,260409," 140,622.31 ",Information Management Services,Large,Programme Expenditure
UK Statistics Family,Office for National Statistics,17/03/2023,Exp - Purchase Of Goods/Services - Contractors,Consultancy Management,Malikshaw Interim & Executive,260417," 14,090.40 ",Information Management Services,SME,Programme Expenditure
UK Statistics Family,Office for National Statistics,17/03/2023,Exp - Purchase Of Goods/Services - Contractors,Data Science Campus,Malikshaw Interim & Executive,260417," 14,851.20 ",Information Management Services,SME,Programme Expenditure
UK Statistics Family,Office for National Statistics,17/03/2023,Exp - Purchase Of Goods/Services - Incentive Payments,Covid Infection Survey,Sodexo Motivation Solutions U.K. ltd,260419," 36,908.10 ",Survey Response Incentive Vouchers,Large,Programme Expenditure
UK Statistics Family,Office for National Statistics,17/03/2023,Exp - Purchase Of Goods/Services - Contractors,Strategy And Architecture,LA FOSSE ASSOCIATES LIMITED,260420," 30,450.00 ",Information Management Services,Large,Programme Expenditure
UK Statistics Family,Office for National Statistics,20/03/2023,Plant & Machinery At Cost - Additions,REPROGRAPHICS,Quadient UK Ltd,260558," 62,253.90 ",Reprographic Equipment,Large,Programme Expenditure
UK Statistics Family,Office for National Statistics,21/03/2023,Postage,Survey Processing Centre,DHL Parcel Ltd,260770," 58,373.15 ",Postage Services,Large,Programme Expenditure
UK Statistics Family,Office for National Statistics,21/03/2023,Exp - Purchase Of Goods/Services - Contractors,Testing,La International,260771," 14,514.64 ",Information Management Services,SME,Programme Expenditure
UK Statistics Family,Office for National Statistics,21/03/2023,Exp - Purchase Of Goods/Services - Contractors,Testing,La International,260771," 6,635.30 ",Information Management Services,SME,Programme Expenditure
UK Statistics Family,Office for National Statistics,21/03/2023,Exp - Purchase Of Goods/Services - Contractors,Data Architecture,La International,260771," 7,963.56 ",Information Management Services,SME,Programme Expenditure
UK Statistics Family,Office for National Statistics,21/03/2023,Exp - Purchase Of Goods/Services - Contractors,Tech Delivery Next Gen IT And Infrastructure,La International,260771," 3,844.62 ",Information Management Services,SME,Programme Expenditure
UK Statistics Family,Office for National Statistics,21/03/2023,Exp - Purchase Of Goods/Services - Contractors,IT Applications,La International,260771," 4,581.18 ",Information Management Services,SME,Programme Expenditure
UK Statistics Family,Office for National Statistics,21/03/2023,Exp - Purchase Of Goods/Services - Accommodation & Bldng Management - Wood Utility,Property Newport,Balcas Limited,260777," 25,373.38 ",On-site Boiler Fuel,Large,Programme Expenditure
UK Statistics Family,Office for National Statistics,21/03/2023,Gas,Property Christchurch,British Gas Business,260780," 36,101.12 ",Utility Charges,Large,Programme Expenditure
UK Statistics Family,Office for National Statistics,21/03/2023,End User Software And Hardware,IT Operations,Boxxe Ltd,260781," 278,688.00 ",Software Licenses,SME,Programme Expenditure
UK Statistics Family,Office for National Statistics,22/03/2023,Accommodation & Building Management,Property Newport,Vinci Construction UK Limited,260909," 19,978.40 ",Facilities Mangement Services,Large,Programme Expenditure
UK Statistics Family,Office for National Statistics,22/03/2023,Accommodation & Building Management,Property Titchfield,Vinci Construction UK Limited,260909," 4,764.61 ",Facilities Mangement Services,Large,Programme Expenditure
UK Statistics Family,Office for National Statistics,22/03/2023,IT (Owned) At Cost - Additions,PROPERTY LONDON 2MS,Vinci Construction UK Limited,260909, 786.47 ,Facilities Mangement Services,Large,Programme Expenditure
UK Statistics Family,Office for National Statistics,22/03/2023,Exp - Purchase Of Goods/Services - Accommodation & Bldng Management - Miscellaneous Minor Works,PROPERTY LONDON 2MS,Vinci Construction UK Limited,260909, 708.00 ,Facilities Mangement Services,Large,Programme Expenditure
UK Statistics Family,Office for National Statistics,22/03/2023,FM Contract Payments,Vinci Payments,Vinci Construction UK Limited,260909," 76,068.91 ",Facilities Mangement Services,Large,Programme Expenditure
UK Statistics Family,Office for National Statistics,22/03/2023,Travel And Subsistence,Corporate Centre,Corporate Travel Management ,260911," 41,357.40 ",Travel and Accommodation,SME,Programme Expenditure
UK Statistics Family,Office for National Statistics,22/03/2023,IT (Owned) At Cost - Additions,IT Operations,Centerprise International Ltd,260912," 195,573.60 ",Computers and Peripherals,Large,Programme Expenditure
UK Statistics Family,Office for National Statistics,22/03/2023,Telecoms,IT Operations,Cdw Limited,260918," 35,536.80 ",Information Management Services,Large,Programme Expenditure
UK Statistics Family,Office for National Statistics,22/03/2023,Telecoms,IT Operations,Freedom Communications (UK) Ltd,260919," 32,158.49 ",Information Management Services,Large,Programme Expenditure
UK Statistics Family,Office for National Statistics,22/03/2023,Exp - Seconded UK Staff - Basic Salary,FAST STREAM RECHARGES - CABINET OFFICE,Cabinet Office,260922," 43,324.00 ",Fast Stream Services,Large,Programme Expenditure
UK Statistics Family,Office for National Statistics,22/03/2023,Other Goods And Services,FAST STREAM RECHARGES - CABINET OFFICE,Cabinet Office,260922," 42,574.00 ",Fast Stream Services,Large,Programme Expenditure
UK Statistics Family,Office for National Statistics,22/03/2023,Telecoms,IT Operations,Bt Global Services,260925," 25,730.06 ",Telecommunications,Large,Programme Expenditure
UK Statistics Family,Office for National Statistics,22/03/2023,Accommodation & Building Management,Property Services,Cadline Ltd,260930," 46,800.00 ",Information Management Services,SME,Programme Expenditure
UK Statistics Family,Office for National Statistics,22/03/2023,Capital Major Works >25K,Property Newport,Intellectual Property Office,260933," 48,130.00 ",Shared Facility Costs,Large,Programme Expenditure
UK Statistics Family,Office for National Statistics,22/03/2023,Exp - Purchase Of Goods/Services - Accommodation & Bldng Management - Grounds Maint Fixed Fee,Property Newport,Intellectual Property Office,260933, 646.23 ,Shared Facility Costs,Large,Programme Expenditure
UK Statistics Family,Office for National Statistics,22/03/2023,Surveys,Crime Income And Wealth,Natcen Social Research,260934," 61,052.72 ",Statistical Services,Large,Programme Expenditure
UK Statistics Family,Office for National Statistics,23/03/2023,Exp - Purchase Of Goods/Services - Contractors,Digital Media,Certes Computing Ltd,261030," 11,529.00 ",Information Management Services,SME,Programme Expenditure
UK Statistics Family,Office for National Statistics,23/03/2023,Exp - Purchase Of Goods/Services - Contractors,Interviewer Management FiF,Certes Computing Ltd,261030," 17,550.00 ",Information Management Services,SME,Programme Expenditure
UK Statistics Family,Office for National Statistics,24/03/2023,Exp - Purchase Of Goods/Services - IT Contractual Services,Digital Publishing,University of Durham,261136," 72,956.80 ",Statistical Services,Large,Programme Expenditure
UK Statistics Family,Office for National Statistics,24/03/2023,Exp - Purchase Of Goods/Services - Contractors,Data Architecture,Malikshaw Interim & Executive,261140," 13,977.60 ",Information Management Services,SME,Programme Expenditure
UK Statistics Family,Office for National Statistics,24/03/2023,Exp - Purchase Of Goods/Services - Contractors,DATA ENGINEERING OPERATIONS AND DELIVERY,Malikshaw Interim & Executive,261140," 18,072.00 ",Information Management Services,SME,Programme Expenditure
UK Statistics Family,Office for National Statistics,24/03/2023,Exp - Purchase Of Goods/Services - IT Contractual Services,PARTNERSHIP DEVELOPMENT,CGI IT UK Limited,261143," 251,996.77 ",Information Management Services,Large,Programme Expenditure
UK Statistics Family,Office for National Statistics,24/03/2023,Exp - Purchase Of Goods And Services Consultants,Policy Secretariat,Parity Resources Limited,261146," 1,340.11 ",Information Management Services,Large,Programme Expenditure
UK Statistics Family,Office for National Statistics,24/03/2023,Exp - Purchase Of Goods/Services - Contractors,Programme Support,Parity Resources Limited,261146," 3,000.00 ",Information Management Services,Large,Programme Expenditure
UK Statistics Family,Office for National Statistics,24/03/2023,Exp - Purchase Of Goods/Services - Contractors,Data Architecture,Parity Resources Limited,261146," 4,810.50 ",Information Management Services,Large,Programme Expenditure
UK Statistics Family,Office for National Statistics,24/03/2023,Exp - Purchase Of Goods/Services - Contractors,CDIO UNGP,Parity Resources Limited,261146," 4,600.50 ",Information Management Services,Large,Programme Expenditure
UK Statistics Family,Office for National Statistics,24/03/2023,Exp - Purchase Of Goods/Services - Contractors,Strategy And Architecture,Parity Resources Limited,261146," 4,210.50 ",Information Management Services,Large,Programme Expenditure
UK Statistics Family,Office for National Statistics,24/03/2023,Exp - Purchase Of Goods/Services - Contractors,Tech Delivery Legacy Sp,Parity Resources Limited,261146," 2,699.22 ",Information Management Services,Large,Programme Expenditure
UK Statistics Family,Office for National Statistics,24/03/2023,Exp - Purchase Of Goods/Services - Contractors,IT Operations,Parity Resources Limited,261146," 8,350.50 ",Information Management Services,Large,Programme Expenditure
UK Statistics Family,Office for National Statistics,24/03/2023,Exp - Short-Term Contract & Agency Staff - Full Cost,Interviewer Management FiF,Parity Resources Limited,261146, 235.87 ,Information Management Services,Large,Programme Expenditure
UK Statistics Family,Office for National Statistics,24/03/2023,Exp - Purchase Of Goods/Services - Census Field Costs,Interviewer Management FiF,Parity Resources Limited,261146, 5.63 ,Information Management Services,Large,Programme Expenditure
UK Statistics Family,Office for National Statistics,24/03/2023,Other Goods And Services,Recruitment ,Cabinet Office,261147, 576.00 ,Recruitment Services,Large,Programme Expenditure
UK Statistics Family,Office for National Statistics,24/03/2023,Other Goods And Services,FAST STREAM RECHARGES - CABINET OFFICE,Cabinet Office,261147," 54,444.00 ",Fast Stream Services,Large,Programme Expenditure
UK Statistics Family,Office for National Statistics,27/03/2023,Postage,Survey Processing Centre,DHL Parcel Ltd,261273," 26,022.79 ",Postage Services,Large,Programme Expenditure
UK Statistics Family,Office for National Statistics,27/03/2023,Exp - Purchase Of Goods/Services - Contractors,Data Architecture,Certes Computing Ltd,261274," 13,770.54 ",Information Management Services,SME,Programme Expenditure
UK Statistics Family,Office for National Statistics,27/03/2023,Exp - Purchase Of Goods/Services - Contractors,CLOUD ARCHITECTURE,Certes Computing Ltd,261274," 14,181.53 ",Information Management Services,SME,Programme Expenditure
UK Statistics Family,Office for National Statistics,27/03/2023,Accommodation & Building Management,Interview Management IPS,London Borough of Hillingdon,261276," 26,369.66 ",Non-domestic Rates,Large,Programme Expenditure
UK Statistics Family,Office for National Statistics,27/03/2023,Exp - Purchase Of Goods/Services - Incentive Payments,Covid Infection Survey,Sodexo Motivation Solutions U.K. ltd,261278," 549,468.63 ",Survey Response Incentive Vouchers,Large,Programme Expenditure
UK Statistics Family,Office for National Statistics,27/03/2023,Exp - Purchase Of Goods And Services Consultants,INTEGRATED DATA STRATEGY AND DELIVERY,Deloitte,261284," 1,082,622.00 ",Consultancy,Large,Programme Expenditure
UK Statistics Family,Office for National Statistics,27/03/2023,EXP - PURCHASE OF GOODS/SERVICES -  NON IT CONTRACTUAL PAYMENTS,Crime Statistics,Edinburgh Innovations,261285," 58,294.55 ",Statistical Services,SME,Programme Expenditure
UK Statistics Family,Office for National Statistics,28/03/2023,PPE - NON-PROPERTY (LEASED NON-PFI) - COST - ADDITIONS (AS LESSEE),IT Operations,Crown Hosting Data Centres Limited,261525," 61,222.80 ",Information Management Services,SME,Programme Expenditure
UK Statistics Family,Office for National Statistics,28/03/2023,Exp - Short-Term Contract & Agency Staff - Full Cost,Programme Support,Concept Information Technology Ltd T/A Concept Resourcing,261527," 2,638.43 ",Information Management Services,Large,Programme Expenditure
UK Statistics Family,Office for National Statistics,28/03/2023,Exp - Short-Term Contract & Agency Staff - Full Cost,Public Sector And Households,Concept Information Technology Ltd T/A Concept Resourcing,261527," 3,882.78 ",Information Management Services,Large,Programme Expenditure
UK Statistics Family,Office for National Statistics,28/03/2023,Exp - Short-Term Contract & Agency Staff - Full Cost,Public Sector And Households,Concept Information Technology Ltd T/A Concept Resourcing,261527," 4,218.00 ",Information Management Services,Large,Programme Expenditure
UK Statistics Family,Office for National Statistics,28/03/2023,Exp - Short-Term Contract & Agency Staff - Full Cost,Public Sector And Households,Concept Information Technology Ltd T/A Concept Resourcing,261527," 4,218.00 ",Information Management Services,Large,Programme Expenditure
UK Statistics Family,Office for National Statistics,28/03/2023,Exp - Short-Term Contract & Agency Staff - Full Cost,Public Sector And Households,Concept Information Technology Ltd T/A Concept Resourcing,261527," 6,404.25 ",Information Management Services,Large,Programme Expenditure
UK Statistics Family,Office for National Statistics,28/03/2023,Exp - Short-Term Contract & Agency Staff - Full Cost,Public Sector And Households,Concept Information Technology Ltd T/A Concept Resourcing,261527," 13,852.95 ",Information Management Services,Large,Programme Expenditure
UK Statistics Family,Office for National Statistics,28/03/2023,Exp - Short-Term Contract & Agency Staff - Full Cost,Public Sector And Households,Concept Information Technology Ltd T/A Concept Resourcing,261527," 12,435.40 ",Information Management Services,Large,Programme Expenditure
UK Statistics Family,Office for National Statistics,28/03/2023,Exp - Short-Term Contract & Agency Staff - Full Cost,Corporations,Concept Information Technology Ltd T/A Concept Resourcing,261527," 3,113.09 ",Information Management Services,Large,Programme Expenditure
UK Statistics Family,Office for National Statistics,28/03/2023,"ICT Outsourcing, Maintenance And Support",Business Statistics Transformation,Phoenix Software Ltd,261533," 33,357.98 ",Software Licenses,SME,Programme Expenditure
UK Statistics Family,Office for National Statistics,28/03/2023,Exp - Purchase Of Goods/Services - Contractors,Testing,La International,261536," 13,851.11 ",Information Management Services,SME,Programme Expenditure
UK Statistics Family,Office for National Statistics,28/03/2023,Exp - Purchase Of Goods/Services - Contractors,Testing,La International,261536," 3,317.65 ",Information Management Services,SME,Programme Expenditure
UK Statistics Family,Office for National Statistics,28/03/2023,Exp - Purchase Of Goods/Services - Contractors,Security And Information Management Saim,La International,261536," 15,960.00 ",Information Management Services,SME,Programme Expenditure
UK Statistics Family,Office for National Statistics,28/03/2023,Exp - Purchase Of Goods/Services - Contractors,Data Architecture,La International,261536," 13,352.98 ",Information Management Services,SME,Programme Expenditure
UK Statistics Family,Office for National Statistics,28/03/2023,Exp - Purchase Of Goods/Services - Contractors,Data Architecture,La International,261536," 4,281.18 ",Information Management Services,SME,Programme Expenditure
UK Statistics Family,Office for National Statistics,28/03/2023,Exp - Purchase Of Goods/Services - Contractors,CLOUD ARCHITECTURE,La International,261536," 14,994.07 ",Information Management Services,SME,Programme Expenditure
UK Statistics Family,Office for National Statistics,28/03/2023,Exp - Purchase Of Goods/Services - Contractors,Tech Delivery Next Gen IT And Infrastructure,La International,261536," 3,844.62 ",Information Management Services,SME,Programme Expenditure
UK Statistics Family,Office for National Statistics,28/03/2023,Exp - Purchase Of Goods/Services - Contractors,IT Applications,La International,261536," 4,581.18 ",Information Management Services,SME,Programme Expenditure
UK Statistics Family,Office for National Statistics,28/03/2023,Telecoms,IT Operations,High Speed Office (trading as hSo),261543," 30,965.46 ",Information Management Services,SME,Programme Expenditure
UK Statistics Family,Office for National Statistics,28/03/2023,Surveys,Crime Statistics,Kantar Public UK Ltd.,261544," 474,045.90 ",Statistical Services,SME,Programme Expenditure
UK Statistics Family,Office for National Statistics,28/03/2023,Training & Development,Learning And Capability,Human Capital Index Limited,261545," 58,362.36 ",Training and Educational Services,SME,Programme Expenditure
UK Statistics Family,Office for National Statistics,28/03/2023,IT Management And Change,Survey Processing Centre,Xerox UK Limited,261548," 32,847.67 ",Reprographic Services,Large,Programme Expenditure
UK Statistics Family,Office for National Statistics,28/03/2023,Exp - Purchase Of Goods/Services - Incentive Payments,Survey Management,Sodexo Motivation Solutions U.K. ltd,261549," 5,322.71 ",Survey Response Incentive Vouchers,Large,Programme Expenditure
UK Statistics Family,Office for National Statistics,28/03/2023,Exp - Purchase Of Goods/Services - Incentive Payments,Survey Management,Sodexo Motivation Solutions U.K. ltd,261549," 4,437.05 ",Survey Response Incentive Vouchers,Large,Programme Expenditure
UK Statistics Family,Office for National Statistics,28/03/2023,Exp - Purchase Of Goods/Services - Incentive Payments,Survey Management,Sodexo Motivation Solutions U.K. ltd,261549," 6,251.31 ",Survey Response Incentive Vouchers,Large,Programme Expenditure
UK Statistics Family,Office for National Statistics,28/03/2023,Exp - Purchase Of Goods/Services - Incentive Payments,Survey Management,Sodexo Motivation Solutions U.K. ltd,261549," 89,738.24 ",Survey Response Incentive Vouchers,Large,Programme Expenditure
UK Statistics Family,Office for National Statistics,28/03/2023,Exp - Purchase Of Goods/Services - Incentive Payments,Survey Management,Sodexo Motivation Solutions U.K. ltd,261549," 28,683.93 ",Survey Response Incentive Vouchers,Large,Programme Expenditure
UK Statistics Family,Office for National Statistics,28/03/2023,Exp - Purchase Of Goods/Services - Incentive Payments,Crime Statistics,Sodexo Motivation Solutions U.K. ltd,261549, 98.69 ,Survey Response Incentive Vouchers,Large,Programme Expenditure
UK Statistics Family,Office for National Statistics,28/03/2023,Exp - Purchase Of Goods/Services - Incentive Payments,Survey Management,Sodexo Motivation Solutions U.K. ltd,261549," 15,948.34 ",Survey Response Incentive Vouchers,Large,Programme Expenditure
UK Statistics Family,Office for National Statistics,28/03/2023,Exp - Purchase Of Goods/Services - Incentive Payments,Survey Management,Sodexo Motivation Solutions U.K. ltd,261549," 4,845.48 ",Survey Response Incentive Vouchers,Large,Programme Expenditure
UK Statistics Family,Office for National Statistics,28/03/2023,Exp - Purchase Of Goods/Services - Incentive Payments,Survey Management,Banner Group Ltd,261550," 112,320.00 ",Survey Response Incentive Items,SME,Programme Expenditure
UK Statistics Family,Office for National Statistics,28/03/2023,"ICT Outsourcing, Maintenance And Support",Digital Publishing,Insight Direct,261552," 27,031.92 ",Computers and Peripherals,Large,Programme Expenditure
UK Statistics Family,Office for National Statistics,28/03/2023,Exp - Purchase Of Goods/Services - IT Contractual Services,Digital Publishing,Insight Direct,261552," 15,600.00 ",Computers and Peripherals,Large,Programme Expenditure
UK Statistics Family,Office for National Statistics,28/03/2023,Other Professional Services,Property Services,Arcadis LLP,261554," 42,000.00 ",Consultancy,Large,Programme Expenditure
UK Statistics Family,Office for National Statistics,28/03/2023,Exp - Purchase Of Goods/Services - Contractors,GSS Strategy Delivery,Interventions Alliance,261558," 55,963.50 ",Data Aqcuisition,Large,Programme Expenditure
UK Statistics Family,Office for National Statistics,29/03/2023,PPE - NON-PROPERTY (LEASED NON-PFI) - COST - ADDITIONS (AS LESSEE),IT Operations,Crown Hosting Data Centres Limited,261686," 61,218.07 ",Information Management Services,SME,Programme Expenditure
UK Statistics Family,Office for National Statistics,29/03/2023,"ICT Outsourcing, Maintenance And Support",IT Operations,Oracle Corporation UK Ltd,261688," 1,124,656.78 ",Information Management Services,Large,Programme Expenditure
UK Statistics Family,Office for National Statistics,29/03/2023,Exp - Purchase Of Goods/Services - IT Contractual Services,PARTNERSHIP DEVELOPMENT,Sas Software Ltd,261690," 28,782.00 ",Information Management Services,Large,Programme Expenditure
UK Statistics Family,Office for National Statistics,29/03/2023,Exp - Purchase Of Goods/Services - IT Contractual Services,PARTNERSHIP DEVELOPMENT,Sas Software Ltd,261690, 648.00 ,Information Management Services,Large,Programme Expenditure
UK Statistics Family,Office for National Statistics,29/03/2023,Exp - Purchase Of Goods/Services - Training & Development - Seminar & Conference Fees,Portfolio Delivery,KPMG LLP,261691," 21,450.72 ",Training and Educational Services,SME,Programme Expenditure
UK Statistics Family,Office for National Statistics,29/03/2023,Training & Development,Learning And Capability,KPMG LLP,261691," 51,861.48 ",Training and Educational Services,SME,Programme Expenditure
UK Statistics Family,Office for National Statistics,29/03/2023,Exp - Purchase Of Goods/Services - Accommodation & Bldng Management - Miscellaneous Minor Works,Property Titchfield,Vinci Construction UK Limited,261692," 69,892.80 ",Facilities Mangement Services,Large,Programme Expenditure
UK Statistics Family,Office for National Statistics,29/03/2023,Exp - Purchase Of Goods/Services - Training & Development - Seminar & Conference Fees,PPA Central,Ernst & Young LLP,261695," 6,141.60 ",Consultancy,Large,Programme Expenditure
UK Statistics Family,Office for National Statistics,29/03/2023,Exp - Purchase Of Goods And Services Consultants,Corporate Planning And Resilience,Ernst & Young LLP,261695," 31,080.00 ",Consultancy,Large,Programme Expenditure
UK Statistics Family,Office for National Statistics,29/03/2023,Exp - Purchase Of Goods And Services Consultants,Planning And Info Governance,Ernst & Young LLP,261695," 8,460.00 ",Consultancy,Large,Programme Expenditure
UK Statistics Family,Office for National Statistics,29/03/2023,Training & Development,Learning And Capability,Ernst & Young LLP,261695," 2,520.00 ",Consultancy,Large,Programme Expenditure
UK Statistics Family,Office for National Statistics,29/03/2023,End User Software And Hardware,CLOUD ARCHITECTURE,CTS (Cloud Technology Solutions Ltd),261700," 123,897.60 ",Information Management Services,Large,Programme Expenditure
UK Statistics Family,Office for National Statistics,29/03/2023,Exp - Purchase Of Goods And Services Consultants,Security Advisory,Information Security Forum Limited,261701," 31,200.00 ",Consultancy,Large,Programme Expenditure
UK Statistics Family,Office for National Statistics,29/03/2023,EXP - PURCHASE OF GOODS/SERVICES - DATA ACQUISITION,Prices Division,Kantar Public UK Ltd.,261702," 223,080.00 ",Statistical Services,SME,Programme Expenditure
UK Statistics Family,Office for National Statistics,29/03/2023,"ICT Outsourcing, Maintenance And Support",Researcher Support And Data Access ,Equiniti-TopLevel,261706," 34,992.00 ",Information Management Services,SME,Programme Expenditure
UK Statistics Family,Office for National Statistics,29/03/2023,Exp - Purchase Of Goods And Services Consultants,Policy Secretariat,Parity Resources Limited,261707, 987.76 ,Information Management Services,Large,Programme Expenditure
UK Statistics Family,Office for National Statistics,29/03/2023,Exp - Purchase Of Goods/Services - Contractors,Programme Support,Parity Resources Limited,261707," 2,880.00 ",Information Management Services,Large,Programme Expenditure
UK Statistics Family,Office for National Statistics,29/03/2023,Exp - Short-Term Contract & Agency Staff - Full Cost,Finance,Parity Resources Limited,261707," 1,509.60 ",Information Management Services,Large,Programme Expenditure
UK Statistics Family,Office for National Statistics,29/03/2023,Exp - Purchase Of Goods/Services - Contractors,Data Architecture,Parity Resources Limited,261707," 4,810.50 ",Information Management Services,Large,Programme Expenditure
UK Statistics Family,Office for National Statistics,29/03/2023,Exp - Purchase Of Goods/Services - Contractors,CDIO UNGP,Parity Resources Limited,261707," 4,600.50 ",Information Management Services,Large,Programme Expenditure
UK Statistics Family,Office for National Statistics,29/03/2023,Exp - Purchase Of Goods/Services - Contractors,Strategy And Architecture,Parity Resources Limited,261707," 4,210.50 ",Information Management Services,Large,Programme Expenditure
UK Statistics Family,Office for National Statistics,29/03/2023,Exp - Purchase Of Goods/Services - Contractors,Tech Delivery Legacy Sp,Parity Resources Limited,261707," 2,699.22 ",Information Management Services,Large,Programme Expenditure
UK Statistics Family,Office for National Statistics,29/03/2023,Exp - Purchase Of Goods/Services - Contractors,IT Operations,Parity Resources Limited,261707," 9,415.66 ",Information Management Services,Large,Programme Expenditure
UK Statistics Family,Office for National Statistics,29/03/2023,Exp - Short-Term Contract & Agency Staff - Full Cost,Interviewer Management FiF,Parity Resources Limited,261707, 646.27 ,Information Management Services,Large,Programme Expenditure
UK Statistics Family,Office for National Statistics,29/03/2023,Exp - Purchase Of Goods/Services - Census Field Costs,Interviewer Management FiF,Parity Resources Limited,261707, 98.28 ,Information Management Services,Large,Programme Expenditure
UK Statistics Family,Office for National Statistics,29/03/2023,Other Goods And Services,FAST STREAM RECHARGES - CABINET OFFICE,Cabinet Office,261708," 222,846.77 ",Fast Stream Services,Large,Programme Expenditure
UK Statistics Family,Office for National Statistics,02/03/2023,Exp - Purchase Of Goods/Services - Training & Development - Seminar & Conference Fees,Overseas Development,Eastern Premier Hotel,30004023," 34,359.58 ",Accommodation and Conference Facilities,Large,Programme Expenditure
UK Statistics Family,Office for National Statistics,02/03/2023,Exp - Purchase Of Goods/Services - Incentive Payments,Covid Infection Survey,Sodexo Motivation Solutions U.K. ltd,30004024," 1,237,607.20 ",Survey Response Incentive Vouchers,Large,Programme Expenditure
UK Statistics Family,Office for National Statistics,09/03/2023,Exp - Purchase Of Goods/Services - Incentive Payments,Covid Infection Survey,Sodexo Motivation Solutions U.K. ltd,30004034," 1,194,548.65 ",Survey Response Incentive Vouchers,Large,Programme Expenditure
UK Statistics Family,Office for National Statistics,09/03/2023,Stationery,Lodgecard,Royal Bank of Scotland,30004035," 1,157.93 ",Multiple Procurement Card Purchases  - Stationery ,Large,Programme Expenditure
UK Statistics Family,Office for National Statistics,09/03/2023,Other Goods And Services,GPC,Royal Bank of Scotland,30004035," 51,942.89 ",Multiple Procurement Card Purchases - other goods/services  ,Large,Programme Expenditure
UK Statistics Family,Office for National Statistics,09/03/2023,Travel And Subsistence,Car Hire,Royal Bank of Scotland,30004035," 15,778.65 ",Multiple Procurement Card Purchases - Vehicle Hire  ,Large,Programme Expenditure
UK Statistics Family,Office for National Statistics,16/03/2023,Electricity,Property Services,Edf Energy,30004040," 27,932.78 ",Utility Charges,Large,Programme Expenditure
UK Statistics Family,Office for National Statistics,20/03/2023,Exp - Purchase Of Goods/Services - Incentive Payments,Covid Infection Survey,Sodexo Motivation Solutions U.K. ltd,30004043," 851,097.62 ",Survey Response Incentive Vouchers,Large,Programme Expenditure
UK Statistics Family,Office for National Statistics,20/03/2023,Electricity,Property Titchfield,Edf Energy,30004044," 25,426.63 ",Utility Charges,Large,Programme Expenditure
UK Statistics Family,Office for National Statistics,27/03/2023,Surveys,Covid Infection Survey,IQVIA Limited,30004049," 4,513,432.78 ",Statistical Services,Large,Programme Expenditure
UK Statistics Family,Office for National Statistics,30/03/2023,Exp - Purchase Of Goods/Services - Incentive Payments,Covid Infection Survey,Sodexo Motivation Solutions U.K. ltd,30004056," 374,904.16 ",Survey Response Incentive Vouchers,Large,Programme Expenditure
UK Statistics Family,Office for National Statistics,31/03/2023,Surveys,Covid Infection Survey,IQVIA Limited,30004062," 914,099.70 ",Statistical Services,Large,Programme Expenditure
UK Statistics Family,Office for National Statistics,31/03/2023,"ICT Outsourcing, Maintenance And Support",IT Operations,ITS Computing Limited,30004074," 48,400.00 ",Information Management Services,Large,Programme Expenditure
UK Statistics Family,Office for National Statistics,31/03/2023,Specialist User Software And Hardware,IT Operations,Ibm United Kingdom Ltd,30004075," 60,519.08 ",Information Management Services,Large,Programme Expenditure
UK Statistics Family,Office for National Statistics,31/03/2023,"ICT Outsourcing, Maintenance And Support",IT Operations,Insight Direct,30004076," 1,004,185.54 ",Software Licenses,Large,Programme Expenditure
UK Statistics Family,Office for National Statistics,31/03/2023,Exp - Purchase Of Goods/Services - IT Contractual Services,CDIO UNGP,Methods Business & Digital Technology Ltd,30004077," 7,800.00 ",Information Management Services,Large,Programme Expenditure
UK Statistics Family,Office for National Statistics,31/03/2023,Exp - Purchase Of Goods/Services - IT Contractual Services,Digital Delivery,Methods Business & Digital Technology Ltd,30004077," 172,200.00 ",Information Management Services,Large,Programme Expenditure
UK Statistics Family,Office for National Statistics,31/03/2023,Exp - Purchase Of Goods/Services - IT Contractual Services,CDIO UNGP,Microsoft Limited,30004078," 163,128.00 ",Information Management Services,Large,Programme Expenditure
UK Statistics Family,Office for National Statistics,31/03/2023,Surveys,Crime Income And Wealth,Natcen Social Research,30004079," 121,814.09 ",Statistical Services,Large,Programme Expenditure
UK Statistics Family,Office for National Statistics,31/03/2023,Surveys,Social Surveys Division,Natcen Social Research,30004079," 38,731.20 ",Statistical Services,Large,Programme Expenditure
UK Statistics Family,Office for National Statistics,31/03/2023,Surveys,GSS Strategy Delivery,National Institute of Economic and Social Research,30004080," 180,578.88 ",Statistical Services,SME,Programme Expenditure
UK Statistics Family,Office for National Statistics,31/03/2023,Exp - Purchase Of Goods And Services Consultants,Productivity Research And Professional Development,Niesr,30004081," 432,090.00 ",Statistical Services,SME,Programme Expenditure
UK Statistics Family,Office for National Statistics,31/03/2023,Postage,REPROGRAPHICS,Pitney Bowes Ltd,30004082," 169,606.00 ",Postage Services,Large,Programme Expenditure
UK Statistics Family,Office for National Statistics,31/03/2023,Fixtures & Fittings At Cost - Additions,Property Newport,Vinci Construction UK Limited,30004083," 144,337.22 ",Facilities Mangement Services,Large,Programme Expenditure
UK Statistics Family,Office for National Statistics,31/03/2023,Buildings Under Construction,Property Newport,Vinci Construction UK Limited,30004083," 216,000.00 ",Facilities Mangement Services,Large,Programme Expenditure
UK Statistics Family,Office for National Statistics,31/03/2023,Buildings Under Construction,Property Newport,Vinci Construction UK Limited,30004083," 240,000.00 ",Facilities Mangement Services,Large,Programme Expenditure
UK Statistics Family,Office for National Statistics,31/03/2023,Capital Major Works >25K,Property Newport,Vinci Construction UK Limited,30004083," 360,000.00 ",Facilities Mangement Services,Large,Programme Expenditure
UK Statistics Family,Office for National Statistics,31/03/2023,Exp - Purchase Of Goods/Services - Accommodation & Bldng Management - Miscellaneous Minor Works,Property Titchfield,Vinci Construction UK Limited,30004083," 27,600.00 ",Facilities Mangement Services,Large,Programme Expenditure
UK Statistics Family,Office for National Statistics,31/03/2023,Exp - Purchase Of Goods/Services - Accommodation & Bldng Management - Miscellaneous Minor Works,Property Titchfield,Vinci Construction UK Limited,30004083," 108,000.00 ",Facilities Mangement Services,Large,Programme Expenditure
UK Statistics Family,Office for National Statistics,31/03/2023,FM Contract Payments,Vinci Payments,Vinci Construction UK Limited,30004083," 266,352.12 ",Facilities Mangement Services,Large,Programme Expenditure
UK Statistics Family,Office for National Statistics,31/03/2023,Exp - Purchase Of Goods And Services Consultants,Productivity Research And Professional Development,Kings College London,30004084," 66,294.30 ",Statistical Services,Large,Programme Expenditure
UK Statistics Family,Office for National Statistics,31/03/2023,Exp - Purchase Of Goods/Services - Training & Development - Seminar & Conference Fees,Productivity Research And Professional Development,Kings College London,30004084," 60,800.00 ",Statistical Services,Large,Programme Expenditure
UK Statistics Family,Office for National Statistics,31/03/2023,Surveys,Productivity Research And Professional Development,Kings College London,30004084," 150,000.00 ",Statistical Services,Large,Programme Expenditure
,,,,,,,"32,547,501.05",,,
